Workbook

Sheet Anthropometry
A1: Anthropometric Measures -- Adult Population
A2: Job / Task Information -- Enter Useful Information in This Box -- See also comments in cells by placing curser over cells marked by red triangle in upper right corner. | C2: Adult Population Mix (%) | F2: Design
C3: Men | D3: Women | F3: Exclusion (%)
C4: 50 | D4: =100-C4 -> 50 | F4: 5
A5: 2 | D5: Units: | E5: =INDEX(Tables!I3:I4,A5,1) -> in, lb
A6: If units are changed, push Find Values again. | C6: Limits (%ile) | E6: Range (%ile)
B7: Mean | C7: Minimum | D7: Maximum | E7: Low | F7: High
A8: Select Dimensions of Interest | B8: 50%ile | C8: =Tables!O43 -> 5 | D8: =Tables!P43 -> 95 | E8: =Tables!Q43 -> 2.5 | F8: =Tables!R43 -> 97.5
A9: 2 | B9: =Tables!R5 -> 66.3102 | C9: 60.82249986 | D9: 72.08874385 | E9: 59.97065068 | F9: 73.02799458 | G9: =Tables!N45 -> 
A10: 3 | B10: =Tables!R6 -> 164.56 | C10: 105.1780953 | D10: 226.423715 | E10: 94.62301098 | F10: 238.0831339 | G10: =Tables!N46 -> 
A11: 1 | B11: =Tables!R7 ->  | G11: =Tables!N47 -> 
A12: 1 | B12: =Tables!R8 ->  | G12: =Tables!N48 -> 
A13: 1 | B13: =Tables!R9 ->  | G13: =Tables!N49 -> 
A14: 1 | B14: =Tables!R10 ->  | G14: =Tables!N50 -> 
A15: 1 | B15: =Tables!R11 ->  | G15: =Tables!N51 -> 
A16: 1 | B16: =Tables!R12 ->  | G16: =Tables!N52 -> 
A17: 1 | B17: =Tables!R13 ->  | G17: =Tables!N53 -> 
A18: 1 | B18: =Tables!R14 ->  | G18: =Tables!N54 -> 
A19: 1 | B19: =Tables!R15 ->  | G19: =Tables!N55 -> 
C21: =IF(OR(G9="*",G10="*",G11="*",G12="*",G13="*",G14="*",G15="*",G16="*",G17="*",G18="*",G19="*"),"* Press Find Values","") -> 
C22: =IF(C21="","","If * at end of row remains, there is a computation error.") -> 
A24: =Tables!B51 -> Thomas E. Bernard
A25: =Tables!B52 -> University of South Florida
A26: =Tables!B53 -> College of Public Health
A27: =Tables!B54 -> Tampa FL 33612-3805
A28: =Tables!B55 -> tbernard@hsc.usf.edu // (813) 974-6629
A29: =Tables!B56 -> v1.3 10/7/00 © 2000 Thomas E. Bernard
A30: =Tables!B57 -> For updates, see Stone Wheels at www.hsc.usf.edu/~tbernard
A31: =Tables!B58 -> No Warranty -- Explicit or Implicit
G42: x

Sheet Tables
B1: Tables | C1: Data Table in SI units | I1: Conversions
B2: Data from Ergonomic Design for People at Work, Vol 1 | I2: to US Trad | K2: Data for selected dimensions in selected units
B3: Table VIA-2, pp 290-293 | C3: Men | F3: Women | I3: cm, kg | K3: Men | N3: Women | R3: Weighted
A4: Index | B4: The table section in Yellow may be edited. | C4: Mean | D4: -sd | E4: +sd | F4: Mean | G4: -sd | H4: +sd | I4: in, lb | J4: Index | K4: Mean | L4: -sd | M4: +sd | N4: Mean | O4: -sd | P4: +sd | R4: Mean
A5: 1 | B5: None | C5: 0 | F5: 0 | I5: 0 | J5: =Anthropometry!A9 -> 2 | K5: =IF(Anthropometry!$A$5=1,INDEX($C$5:$H$49,$J5,1),INDEX($C$5:$I$49,$J5,7)*INDEX($C$5:$H$49,$J5,1)) -> 68.753 | L5: =IF(Anthropometry!$A$5=1,INDEX($C$5:$H$49,$J5,2),INDEX($C$5:$I$49,$J5,7)*INDEX($C$5:$H$49,$J5,2)) -> 2.6004 | M5: =IF(Anthropometry!$A$5=1,INDEX($C$5:$H$49,$J5,3),INDEX($C$5:$I$49,$J5,7)*INDEX($C$5:$H$49,$J5,3)) -> 2.6004 | N5: =IF(Anthropometry!$A$5=1,INDEX($C$5:$H$49,$J5,4),INDEX($C$5:$I$49,$J5,7)*INDEX($C$5:$H$49,$J5,4)) -> 63.8674 | O5: =IF(Anthropometry!$A$5=1,INDEX($C$5:$H$49,$J5,5),INDEX($C$5:$I$49,$J5,7)*INDEX($C$5:$H$49,$J5,5)) -> 2.364 | P5: =IF(Anthropometry!$A$5=1,INDEX($C$5:$H$49,$J5,6),INDEX($C$5:$I$49,$J5,7)*INDEX($C$5:$H$49,$J5,6)) -> 2.364 | R5: =IF(J5=1,"",(Anthropometry!$C$4*K5+Anthropometry!$D$4*N5)/100) -> 66.3102
A6: 2 | B6: Stature {9} | C6: 174.5 | D6: 6.6 | E6: 6.6 | F6: 162.1 | G6: 6 | H6: 6 | I6: 0.394 | J6: =Anthropometry!A10 -> 3 | K6: =IF(Anthropometry!$A$5=1,INDEX($C$5:$H$49,$J6,1),INDEX($C$5:$I$49,$J6,7)*INDEX($C$5:$H$49,$J6,1)) -> 183.04 | L6: =IF(Anthropometry!$A$5=1,INDEX($C$5:$H$49,$J6,2),INDEX($C$5:$I$49,$J6,7)*INDEX($C$5:$H$49,$J6,2)) -> 33.22 | M6: =IF(Anthropometry!$A$5=1,INDEX($C$5:$H$49,$J6,3),INDEX($C$5:$I$49,$J6,7)*INDEX($C$5:$H$49,$J6,3)) -> 33.22 | N6: =IF(Anthropometry!$A$5=1,INDEX($C$5:$H$49,$J6,4),INDEX($C$5:$I$49,$J6,7)*INDEX($C$5:$H$49,$J6,4)) -> 146.08 | O6: =IF(Anthropometry!$A$5=1,INDEX($C$5:$H$49,$J6,5),INDEX($C$5:$I$49,$J6,7)*INDEX($C$5:$H$49,$J6,5)) -> 30.58 | P6: =IF(Anthropometry!$A$5=1,INDEX($C$5:$H$49,$J6,6),INDEX($C$5:$I$49,$J6,7)*INDEX($C$5:$H$49,$J6,6)) -> 30.58 | R6: =IF(J6=1,"",(Anthropometry!$C$4*K6+Anthropometry!$D$4*N6)/100) -> 164.56
A7: 3 | B7: Weight {43} | C7: 83.2 | D7: 15.1 | E7: 15.1 | F7: 66.4 | G7: 13.9 | H7: 13.9 | I7: 2.2 | J7: =Anthropometry!A11 -> 1 | K7: =IF(Anthropometry!$A$5=1,INDEX($C$5:$H$49,$J7,1),INDEX($C$5:$I$49,$J7,7)*INDEX($C$5:$H$49,$J7,1)) -> 0 | L7: =IF(Anthropometry!$A$5=1,INDEX($C$5:$H$49,$J7,2),INDEX($C$5:$I$49,$J7,7)*INDEX($C$5:$H$49,$J7,2)) -> 0 | M7: =IF(Anthropometry!$A$5=1,INDEX($C$5:$H$49,$J7,3),INDEX($C$5:$I$49,$J7,7)*INDEX($C$5:$H$49,$J7,3)) -> 0 | N7: =IF(Anthropometry!$A$5=1,INDEX($C$5:$H$49,$J7,4),INDEX($C$5:$I$49,$J7,7)*INDEX($C$5:$H$49,$J7,4)) -> 0 | O7: =IF(Anthropometry!$A$5=1,INDEX($C$5:$H$49,$J7,5),INDEX($C$5:$I$49,$J7,7)*INDEX($C$5:$H$49,$J7,5)) -> 0 | P7: =IF(Anthropometry!$A$5=1,INDEX($C$5:$H$49,$J7,6),INDEX($C$5:$I$49,$J7,7)*INDEX($C$5:$H$49,$J7,6)) -> 0 | R7: =IF(J7=1,"",(Anthropometry!$C$4*K7+Anthropometry!$D$4*N7)/100) -> 
A8: 4 | B8: Forward Functional Reach - Inc body depth {1a} | C8: 82.6 | D8: 4.8 | E8: 4.8 | F8: 74.1 | G8: 3.9 | H8: 3.9 | I8: 0.394 | J8: =Anthropometry!A12 -> 1 | K8: =IF(Anthropometry!$A$5=1,INDEX($C$5:$H$49,$J8,1),INDEX($C$5:$I$49,$J8,7)*INDEX($C$5:$H$49,$J8,1)) -> 0 | L8: =IF(Anthropometry!$A$5=1,INDEX($C$5:$H$49,$J8,2),INDEX($C$5:$I$49,$J8,7)*INDEX($C$5:$H$49,$J8,2)) -> 0 | M8: =IF(Anthropometry!$A$5=1,INDEX($C$5:$H$49,$J8,3),INDEX($C$5:$I$49,$J8,7)*INDEX($C$5:$H$49,$J8,3)) -> 0 | N8: =IF(Anthropometry!$A$5=1,INDEX($C$5:$H$49,$J8,4),INDEX($C$5:$I$49,$J8,7)*INDEX($C$5:$H$49,$J8,4)) -> 0 | O8: =IF(Anthropometry!$A$5=1,INDEX($C$5:$H$49,$J8,5),INDEX($C$5:$I$49,$J8,7)*INDEX($C$5:$H$49,$J8,5)) -> 0 | P8: =IF(Anthropometry!$A$5=1,INDEX($C$5:$H$49,$J8,6),INDEX($C$5:$I$49,$J8,7)*INDEX($C$5:$H$49,$J8,6)) -> 0 | R8: =IF(J8=1,"",(Anthropometry!$C$4*K8+Anthropometry!$D$4*N8)/100) -> 
A9: 5 | B9: Frwd Func Reach - acromial process to pinch {1b} | C9: 63.8 | D9: 4.3 | E9: 4.3 | F9: 62.5 | G9: 3.4 | H9: 3.4 | I9: 0.394 | J9: =Anthropometry!A13 -> 1 | K9: =IF(Anthropometry!$A$5=1,INDEX($C$5:$H$49,$J9,1),INDEX($C$5:$I$49,$J9,7)*INDEX($C$5:$H$49,$J9,1)) -> 0 | L9: =IF(Anthropometry!$A$5=1,INDEX($C$5:$H$49,$J9,2),INDEX($C$5:$I$49,$J9,7)*INDEX($C$5:$H$49,$J9,2)) -> 0 | M9: =IF(Anthropometry!$A$5=1,INDEX($C$5:$H$49,$J9,3),INDEX($C$5:$I$49,$J9,7)*INDEX($C$5:$H$49,$J9,3)) -> 0 | N9: =IF(Anthropometry!$A$5=1,INDEX($C$5:$H$49,$J9,4),INDEX($C$5:$I$49,$J9,7)*INDEX($C$5:$H$49,$J9,4)) -> 0 | O9: =IF(Anthropometry!$A$5=1,INDEX($C$5:$H$49,$J9,5),INDEX($C$5:$I$49,$J9,7)*INDEX($C$5:$H$49,$J9,5)) -> 0 | P9: =IF(Anthropometry!$A$5=1,INDEX($C$5:$H$49,$J9,6),INDEX($C$5:$I$49,$J9,7)*INDEX($C$5:$H$49,$J9,6)) -> 0 | R9: =IF(J9=1,"",(Anthropometry!$C$4*K9+Anthropometry!$D$4*N9)/100) -> 
A10: 6 | B10: Frwd Func Reach - abdomen to pinch {1c} | C10: 62.1 | D10: 8.9 | E10: 8.9 | F10: 60.4 | G10: 6.7 | H10: 6.7 | I10: 0.394 | J10: =Anthropometry!A14 -> 1 | K10: =IF(Anthropometry!$A$5=1,INDEX($C$5:$H$49,$J10,1),INDEX($C$5:$I$49,$J10,7)*INDEX($C$5:$H$49,$J10,1)) -> 0 | L10: =IF(Anthropometry!$A$5=1,INDEX($C$5:$H$49,$J10,2),INDEX($C$5:$I$49,$J10,7)*INDEX($C$5:$H$49,$J10,2)) -> 0 | M10: =IF(Anthropometry!$A$5=1,INDEX($C$5:$H$49,$J10,3),INDEX($C$5:$I$49,$J10,7)*INDEX($C$5:$H$49,$J10,3)) -> 0 | N10: =IF(Anthropometry!$A$5=1,INDEX($C$5:$H$49,$J10,4),INDEX($C$5:$I$49,$J10,7)*INDEX($C$5:$H$49,$J10,4)) -> 0 | O10: =IF(Anthropometry!$A$5=1,INDEX($C$5:$H$49,$J10,5),INDEX($C$5:$I$49,$J10,7)*INDEX($C$5:$H$49,$J10,5)) -> 0 | P10: =IF(Anthropometry!$A$5=1,INDEX($C$5:$H$49,$J10,6),INDEX($C$5:$I$49,$J10,7)*INDEX($C$5:$H$49,$J10,6)) -> 0 | R10: =IF(J10=1,"",(Anthropometry!$C$4*K10+Anthropometry!$D$4*N10)/100) -> 
A11: 7 | B11: Abdominal Extension Depth {2} | C11: 23.1 | D11: 2 | E11: 2 | F11: 20.9 | G11: 2.1 | H11: 2.1 | I11: 0.394 | J11: =Anthropometry!A15 -> 1 | K11: =IF(Anthropometry!$A$5=1,INDEX($C$5:$H$49,$J11,1),INDEX($C$5:$I$49,$J11,7)*INDEX($C$5:$H$49,$J11,1)) -> 0 | L11: =IF(Anthropometry!$A$5=1,INDEX($C$5:$H$49,$J11,2),INDEX($C$5:$I$49,$J11,7)*INDEX($C$5:$H$49,$J11,2)) -> 0 | M11: =IF(Anthropometry!$A$5=1,INDEX($C$5:$H$49,$J11,3),INDEX($C$5:$I$49,$J11,7)*INDEX($C$5:$H$49,$J11,3)) -> 0 | N11: =IF(Anthropometry!$A$5=1,INDEX($C$5:$H$49,$J11,4),INDEX($C$5:$I$49,$J11,7)*INDEX($C$5:$H$49,$J11,4)) -> 0 | O11: =IF(Anthropometry!$A$5=1,INDEX($C$5:$H$49,$J11,5),INDEX($C$5:$I$49,$J11,7)*INDEX($C$5:$H$49,$J11,5)) -> 0 | P11: =IF(Anthropometry!$A$5=1,INDEX($C$5:$H$49,$J11,6),INDEX($C$5:$I$49,$J11,7)*INDEX($C$5:$H$49,$J11,6)) -> 0 | R11: =IF(J11=1,"",(Anthropometry!$C$4*K11+Anthropometry!$D$4*N11)/100) -> 
A12: 8 | B12: Waist Height - Stand {3} | C12: 106.3 | D12: 5.4 | E12: 5.4 | F12: 101.7 | G12: 5 | H12: 5 | I12: 0.394 | J12: =Anthropometry!A16 -> 1 | K12: =IF(Anthropometry!$A$5=1,INDEX($C$5:$H$49,$J12,1),INDEX($C$5:$I$49,$J12,7)*INDEX($C$5:$H$49,$J12,1)) -> 0 | L12: =IF(Anthropometry!$A$5=1,INDEX($C$5:$H$49,$J12,2),INDEX($C$5:$I$49,$J12,7)*INDEX($C$5:$H$49,$J12,2)) -> 0 | M12: =IF(Anthropometry!$A$5=1,INDEX($C$5:$H$49,$J12,3),INDEX($C$5:$I$49,$J12,7)*INDEX($C$5:$H$49,$J12,3)) -> 0 | N12: =IF(Anthropometry!$A$5=1,INDEX($C$5:$H$49,$J12,4),INDEX($C$5:$I$49,$J12,7)*INDEX($C$5:$H$49,$J12,4)) -> 0 | O12: =IF(Anthropometry!$A$5=1,INDEX($C$5:$H$49,$J12,5),INDEX($C$5:$I$49,$J12,7)*INDEX($C$5:$H$49,$J12,5)) -> 0 | P12: =IF(Anthropometry!$A$5=1,INDEX($C$5:$H$49,$J12,6),INDEX($C$5:$I$49,$J12,7)*INDEX($C$5:$H$49,$J12,6)) -> 0 | R12: =IF(J12=1,"",(Anthropometry!$C$4*K12+Anthropometry!$D$4*N12)/100) -> 
A13: 9 | B13: Tibial Height {4} | C13: 45.6 | D13: 2.8 | E13: 2.8 | F13: 42 | G13: 2.4 | H13: 2.4 | I13: 0.394 | J13: =Anthropometry!A17 -> 1 | K13: =IF(Anthropometry!$A$5=1,INDEX($C$5:$H$49,$J13,1),INDEX($C$5:$I$49,$J13,7)*INDEX($C$5:$H$49,$J13,1)) -> 0 | L13: =IF(Anthropometry!$A$5=1,INDEX($C$5:$H$49,$J13,2),INDEX($C$5:$I$49,$J13,7)*INDEX($C$5:$H$49,$J13,2)) -> 0 | M13: =IF(Anthropometry!$A$5=1,INDEX($C$5:$H$49,$J13,3),INDEX($C$5:$I$49,$J13,7)*INDEX($C$5:$H$49,$J13,3)) -> 0 | N13: =IF(Anthropometry!$A$5=1,INDEX($C$5:$H$49,$J13,4),INDEX($C$5:$I$49,$J13,7)*INDEX($C$5:$H$49,$J13,4)) -> 0 | O13: =IF(Anthropometry!$A$5=1,INDEX($C$5:$H$49,$J13,5),INDEX($C$5:$I$49,$J13,7)*INDEX($C$5:$H$49,$J13,5)) -> 0 | P13: =IF(Anthropometry!$A$5=1,INDEX($C$5:$H$49,$J13,6),INDEX($C$5:$I$49,$J13,7)*INDEX($C$5:$H$49,$J13,6)) -> 0 | R13: =IF(J13=1,"",(Anthropometry!$C$4*K13+Anthropometry!$D$4*N13)/100) -> 
A14: 10 | B14: Knuckle Height - Stand {5} | C14: 75.5 | D14: 4.1 | E14: 4.1 | F14: 71 | G14: 4 | H14: 4 | I14: 0.394 | J14: =Anthropometry!A18 -> 1 | K14: =IF(Anthropometry!$A$5=1,INDEX($C$5:$H$49,$J14,1),INDEX($C$5:$I$49,$J14,7)*INDEX($C$5:$H$49,$J14,1)) -> 0 | L14: =IF(Anthropometry!$A$5=1,INDEX($C$5:$H$49,$J14,2),INDEX($C$5:$I$49,$J14,7)*INDEX($C$5:$H$49,$J14,2)) -> 0 | M14: =IF(Anthropometry!$A$5=1,INDEX($C$5:$H$49,$J14,3),INDEX($C$5:$I$49,$J14,7)*INDEX($C$5:$H$49,$J14,3)) -> 0 | N14: =IF(Anthropometry!$A$5=1,INDEX($C$5:$H$49,$J14,4),INDEX($C$5:$I$49,$J14,7)*INDEX($C$5:$H$49,$J14,4)) -> 0 | O14: =IF(Anthropometry!$A$5=1,INDEX($C$5:$H$49,$J14,5),INDEX($C$5:$I$49,$J14,7)*INDEX($C$5:$H$49,$J14,5)) -> 0 | P14: =IF(Anthropometry!$A$5=1,INDEX($C$5:$H$49,$J14,6),INDEX($C$5:$I$49,$J14,7)*INDEX($C$5:$H$49,$J14,6)) -> 0 | R14: =IF(J14=1,"",(Anthropometry!$C$4*K14+Anthropometry!$D$4*N14)/100) -> 
A15: 11 | B15: Elbow Height - Stand {6} | C15: 110.5 | D15: 4.5 | E15: 4.5 | F15: 102.6 | G15: 4.8 | H15: 4.8 | I15: 0.394 | J15: =Anthropometry!A19 -> 1 | K15: =IF(Anthropometry!$A$5=1,INDEX($C$5:$H$49,$J15,1),INDEX($C$5:$I$49,$J15,7)*INDEX($C$5:$H$49,$J15,1)) -> 0 | L15: =IF(Anthropometry!$A$5=1,INDEX($C$5:$H$49,$J15,2),INDEX($C$5:$I$49,$J15,7)*INDEX($C$5:$H$49,$J15,2)) -> 0 | M15: =IF(Anthropometry!$A$5=1,INDEX($C$5:$H$49,$J15,3),INDEX($C$5:$I$49,$J15,7)*INDEX($C$5:$H$49,$J15,3)) -> 0 | N15: =IF(Anthropometry!$A$5=1,INDEX($C$5:$H$49,$J15,4),INDEX($C$5:$I$49,$J15,7)*INDEX($C$5:$H$49,$J15,4)) -> 0 | O15: =IF(Anthropometry!$A$5=1,INDEX($C$5:$H$49,$J15,5),INDEX($C$5:$I$49,$J15,7)*INDEX($C$5:$H$49,$J15,5)) -> 0 | P15: =IF(Anthropometry!$A$5=1,INDEX($C$5:$H$49,$J15,6),INDEX($C$5:$I$49,$J15,7)*INDEX($C$5:$H$49,$J15,6)) -> 0 | R15: =IF(J15=1,"",(Anthropometry!$C$4*K15+Anthropometry!$D$4*N15)/100) -> 
A16: 12 | B16: Shoulder Height - Stand {7} | C16: 143.7 | D16: 6.2 | E16: 6.2 | F16: 132.9 | G16: 5.5 | H16: 5.5 | I16: 0.394
A17: 13 | B17: Eye Height - Stand {8} | C17: 164.4 | D17: 6.1 | E17: 6.1 | F17: 151.4 | G17: 5.6 | H17: 5.6 | I17: 0.394 | J17: Index | K17: +/- standard deviations in selected units for min, max, low, high
A18: 14 | B18: Functional Overhead Reach - Stand {10} | C18: 209.6 | D18: 8.5 | E18: 8.5 | F18: 199.2 | G18: 8.6 | H18: 8.6 | I18: 0.394 | J18: =J5 -> 2 | K18: =IF(Anthropometry!C9<$K5,$L5,$M5) -> 2.6004 | L18: =IF(Anthropometry!D9<$K5,$L5,$M5) -> 2.6004 | M18: =IF(Anthropometry!E9<$K5,$L5,$M5) -> 2.6004 | N18: =IF(Anthropometry!F9<$K5,$L5,$M5) -> 2.6004 | O18: =IF(Anthropometry!C9<$N5,$O5,$P5) -> 2.364 | P18: =IF(Anthropometry!D9<$N5,$O5,$P5) -> 2.364 | Q18: =IF(Anthropometry!E9<$N5,$O5,$P5) -> 2.364 | R18: =IF(Anthropometry!F9<$N5,$O5,$P5) -> 2.364
A19: 15 | B19: Thigh Clearance Height - Sit {11} | C19: 14.7 | D19: 1.4 | E19: 1.4 | F19: 12.4 | G19: 1.2 | H19: 1.2 | I19: 0.394 | J19: 3 | K19: =IF(Anthropometry!C10<$K6,$L6,$M6) -> 33.22 | L19: =IF(Anthropometry!D10<$K6,$L6,$M6) -> 33.22 | M19: =IF(Anthropometry!E10<$K6,$L6,$M6) -> 33.22 | N19: =IF(Anthropometry!F10<$K6,$L6,$M6) -> 33.22 | O19: =IF(Anthropometry!C10<$N6,$O6,$P6) -> 30.58 | P19: =IF(Anthropometry!D10<$N6,$O6,$P6) -> 30.58 | Q19: =IF(Anthropometry!E10<$N6,$O6,$P6) -> 30.58 | R19: =IF(Anthropometry!F10<$N6,$O6,$P6) -> 30.58
A20: 16 | B20: Elbow Rest Height - Sit {12} | C20: 24.1 | D20: 3.2 | E20: 3.2 | F20: 23.1 | G20: 3 | H20: 3 | I20: 0.394 | J20: 1 | K20: =IF(Anthropometry!C11<$K7,$L7,$M7) -> 0 | L20: =IF(Anthropometry!D11<$K7,$L7,$M7) -> 0 | M20: =IF(Anthropometry!E11<$K7,$L7,$M7) -> 0 | N20: =IF(Anthropometry!F11<$K7,$L7,$M7) -> 0 | O20: =IF(Anthropometry!C11<$N7,$O7,$P7) -> 0 | P20: =IF(Anthropometry!D11<$N7,$O7,$P7) -> 0 | Q20: =IF(Anthropometry!E11<$N7,$O7,$P7) -> 0 | R20: =IF(Anthropometry!F11<$N7,$O7,$P7) -> 0
A21: 17 | B21: Midshoulder Height - Sit {13} | C21: 62.4 | D21: 3.2 | E21: 3.2 | F21: 58 | G21: 2.7 | H21: 2.7 | I21: 0.394 | J21: 1 | K21: =IF(Anthropometry!C12<$K8,$L8,$M8) -> 0 | L21: =IF(Anthropometry!D12<$K8,$L8,$M8) -> 0 | M21: =IF(Anthropometry!E12<$K8,$L8,$M8) -> 0 | N21: =IF(Anthropometry!F12<$K8,$L8,$M8) -> 0 | O21: =IF(Anthropometry!C12<$N8,$O8,$P8) -> 0 | P21: =IF(Anthropometry!D12<$N8,$O8,$P8) -> 0 | Q21: =IF(Anthropometry!E12<$N8,$O8,$P8) -> 0 | R21: =IF(Anthropometry!F12<$N8,$O8,$P8) -> 0
A22: 18 | B22: Eye Height - Sit {14} | C22: 78.7 | D22: 3.6 | E22: 3.6 | F22: 73.7 | G22: 3.1 | H22: 3.1 | I22: 0.394 | J22: 1 | K22: =IF(Anthropometry!C13<$K9,$L9,$M9) -> 0 | L22: =IF(Anthropometry!D13<$K9,$L9,$M9) -> 0 | M22: =IF(Anthropometry!E13<$K9,$L9,$M9) -> 0 | N22: =IF(Anthropometry!F13<$K9,$L9,$M9) -> 0 | O22: =IF(Anthropometry!C13<$N9,$O9,$P9) -> 0 | P22: =IF(Anthropometry!D13<$N9,$O9,$P9) -> 0 | Q22: =IF(Anthropometry!E13<$N9,$O9,$P9) -> 0 | R22: =IF(Anthropometry!F13<$N9,$O9,$P9) -> 0
A23: 19 | B23: Sitting Height - Normal {15} | C23: 86.6 | D23: 3.8 | E23: 3.8 | F23: 81.8 | G23: 4 | H23: 4 | I23: 0.394 | J23: 1 | K23: =IF(Anthropometry!C14<$K10,$L10,$M10) -> 0 | L23: =IF(Anthropometry!D14<$K10,$L10,$M10) -> 0 | M23: =IF(Anthropometry!E14<$K10,$L10,$M10) -> 0 | N23: =IF(Anthropometry!F14<$K10,$L10,$M10) -> 0 | O23: =IF(Anthropometry!C14<$N10,$O10,$P10) -> 0 | P23: =IF(Anthropometry!D14<$N10,$O10,$P10) -> 0 | Q23: =IF(Anthropometry!E14<$N10,$O10,$P10) -> 0 | R23: =IF(Anthropometry!F14<$N10,$O10,$P10) -> 0
A24: 20 | B24: Functional Overhead Reach - Sit {16} | C24: 128.4 | D24: 8.5 | E24: 8.5 | F24: 119.8 | G24: 6.6 | H24: 6.6 | I24: 0.394 | J24: 1 | K24: =IF(Anthropometry!C15<$K11,$L11,$M11) -> 0 | L24: =IF(Anthropometry!D15<$K11,$L11,$M11) -> 0 | M24: =IF(Anthropometry!E15<$K11,$L11,$M11) -> 0 | N24: =IF(Anthropometry!F15<$K11,$L11,$M11) -> 0 | O24: =IF(Anthropometry!C15<$N11,$O11,$P11) -> 0 | P24: =IF(Anthropometry!D15<$N11,$O11,$P11) -> 0 | Q24: =IF(Anthropometry!E15<$N11,$O11,$P11) -> 0 | R24: =IF(Anthropometry!F15<$N11,$O11,$P11) -> 0
A25: 21 | B25: Knee Height - Sit {17} | C25: 54 | D25: 2.7 | E25: 2.7 | F25: 51 | G25: 2.6 | H25: 2.6 | I25: 0.394 | J25: 1 | K25: =IF(Anthropometry!C16<$K12,$L12,$M12) -> 0 | L25: =IF(Anthropometry!D16<$K12,$L12,$M12) -> 0 | M25: =IF(Anthropometry!E16<$K12,$L12,$M12) -> 0 | N25: =IF(Anthropometry!F16<$K12,$L12,$M12) -> 0 | O25: =IF(Anthropometry!C16<$N12,$O12,$P12) -> 0 | P25: =IF(Anthropometry!D16<$N12,$O12,$P12) -> 0 | Q25: =IF(Anthropometry!E16<$N12,$O12,$P12) -> 0 | R25: =IF(Anthropometry!F16<$N12,$O12,$P12) -> 0
A26: 22 | B26: Popliteal Height - Sit {18} | C26: 44.6 | D26: 2.5 | E26: 2.5 | F26: 41 | G26: 1.9 | H26: 1.9 | I26: 0.394 | J26: 1 | K26: =IF(Anthropometry!C17<$K13,$L13,$M13) -> 0 | L26: =IF(Anthropometry!D17<$K13,$L13,$M13) -> 0 | M26: =IF(Anthropometry!E17<$K13,$L13,$M13) -> 0 | N26: =IF(Anthropometry!F17<$K13,$L13,$M13) -> 0 | O26: =IF(Anthropometry!C17<$N13,$O13,$P13) -> 0 | P26: =IF(Anthropometry!D17<$N13,$O13,$P13) -> 0 | Q26: =IF(Anthropometry!E17<$N13,$O13,$P13) -> 0 | R26: =IF(Anthropometry!F17<$N13,$O13,$P13) -> 0
A27: 23 | B27: Leg Length - Sit {19} | C27: 105.1 | D27: 4.8 | E27: 4.8 | F27: 100.7 | G27: 4.3 | H27: 4.3 | I27: 0.394 | J27: 1 | K27: =IF(Anthropometry!C18<$K14,$L14,$M14) -> 0 | L27: =IF(Anthropometry!D18<$K14,$L14,$M14) -> 0 | M27: =IF(Anthropometry!E18<$K14,$L14,$M14) -> 0 | N27: =IF(Anthropometry!F18<$K14,$L14,$M14) -> 0 | O27: =IF(Anthropometry!C18<$N14,$O14,$P14) -> 0 | P27: =IF(Anthropometry!D18<$N14,$O14,$P14) -> 0 | Q27: =IF(Anthropometry!E18<$N14,$O14,$P14) -> 0 | R27: =IF(Anthropometry!F18<$N14,$O14,$P14) -> 0
A28: 24 | B28: Upper-Leg Length - Sit {20} | C28: 59.4 | D28: 2.8 | E28: 2.8 | F28: 57.4 | G28: 2.6 | H28: 2.6 | I28: 0.394 | J28: 1 | K28: =IF(Anthropometry!C19<$K15,$L15,$M15) -> 0 | L28: =IF(Anthropometry!D19<$K15,$L15,$M15) -> 0 | M28: =IF(Anthropometry!E19<$K15,$L15,$M15) -> 0 | N28: =IF(Anthropometry!F19<$K15,$L15,$M15) -> 0 | O28: =IF(Anthropometry!C19<$N15,$O15,$P15) -> 0 | P28: =IF(Anthropometry!D19<$N15,$O15,$P15) -> 0 | Q28: =IF(Anthropometry!E19<$N15,$O15,$P15) -> 0 | R28: =IF(Anthropometry!F19<$N15,$O15,$P15) -> 0
A29: 25 | B29: Buttocks-to-Popliteal Length - Sit {21} | C29: 49.8 | D29: 2.5 | E29: 2.5 | F29: 48 | G29: 3.2 | H29: 3.2 | I29: 0.394
A30: 26 | B30: Elbow-to-Fist Length {22} | C30: 38.5 | D30: 2.1 | E30: 2.1 | F30: 34.8 | G30: 2.3 | H30: 2.3 | I30: 0.394 | J30: Index | K30: Goal Seek Difference
A31: 27 | B31: Upper-Arm Length {23} | C31: 36.9 | D31: 1.9 | E31: 1.9 | F31: 34.1 | G31: 2.5 | H31: 2.5 | I31: 0.394 | J31: =J5 -> 2 | K31: =IF($J31=1,"",Tables!O$43-Tables!O45) -> -0.0006613248425 | L31: =IF($J31=1,"",Tables!P$43-Tables!P45) -> 0.001862018868 | M31: =IF($J31=1,"",Tables!Q$43-Tables!Q45) -> -0.0002133116062 | N31: =IF($J31=1,"",Tables!R$43-Tables!R45) -> 0.007195398204
A32: 28 | B32: Shoulder Breadth {24} | C32: 45.4 | D32: 1.9 | E32: 1.9 | F32: 39 | G32: 2.1 | H32: 2.1 | I32: 0.394 | J32: =J6 -> 3 | K32: =IF($J32=1,"",Tables!O$43-Tables!O46) -> -0.003355781183 | L32: =IF($J32=1,"",Tables!P$43-Tables!P46) -> 0.004370023689 | M32: =IF($J32=1,"",Tables!Q$43-Tables!Q46) -> -0.005275186809 | N32: =IF($J32=1,"",Tables!R$43-Tables!R46) -> 0.003965564477
A33: 29 | B33: Hip Breadth {25} | C33: 35.6 | D33: 2.3 | E33: 2.3 | F33: 38 | G33: 2.6 | H33: 2.6 | I33: 0.394 | J33: 1 | K33: =IF($J33=1,"",Tables!O$43-Tables!O47) ->  | L33: =IF($J33=1,"",Tables!P$43-Tables!P47) ->  | M33: =IF($J33=1,"",Tables!Q$43-Tables!Q47) ->  | N33: =IF($J33=1,"",Tables!R$43-Tables!R47) -> 
A34: 30 | B34: Foot Length {26} | C34: 26.8 | D34: 1.3 | E34: 1.3 | F34: 24.1 | G34: 1.1 | H34: 1.1 | I34: 0.394 | J34: 1 | K34: =IF($J34=1,"",Tables!O$43-Tables!O48) ->  | L34: =IF($J34=1,"",Tables!P$43-Tables!P48) ->  | M34: =IF($J34=1,"",Tables!Q$43-Tables!Q48) ->  | N34: =IF($J34=1,"",Tables!R$43-Tables!R48) -> 
A35: 31 | B35: Foot Breadth {27} | C35: 10 | D35: 0.6 | E35: 0.6 | F35: 8.9 | G35: 0.5 | H35: 0.5 | I35: 0.394 | J35: 1 | K35: =IF($J35=1,"",Tables!O$43-Tables!O49) ->  | L35: =IF($J35=1,"",Tables!P$43-Tables!P49) ->  | M35: =IF($J35=1,"",Tables!Q$43-Tables!Q49) ->  | N35: =IF($J35=1,"",Tables!R$43-Tables!R49) -> 
A36: 32 | B36: Hand Thickness, Metacarpal III {28} | C36: 3.3 | D36: 0.2 | E36: 0.2 | F36: 2.8 | G36: 0.2 | H36: 0.2 | I36: 0.394 | J36: 1 | K36: =IF($J36=1,"",Tables!O$43-Tables!O50) ->  | L36: =IF($J36=1,"",Tables!P$43-Tables!P50) ->  | M36: =IF($J36=1,"",Tables!Q$43-Tables!Q50) ->  | N36: =IF($J36=1,"",Tables!R$43-Tables!R50) -> 
A37: 33 | B37: Hand Length {29} | C37: 19 | D37: 1 | E37: 1 | F37: 18.4 | G37: 1 | H37: 1 | I37: 0.394 | J37: 1 | K37: =IF($J37=1,"",Tables!O$43-Tables!O51) ->  | L37: =IF($J37=1,"",Tables!P$43-Tables!P51) ->  | M37: =IF($J37=1,"",Tables!Q$43-Tables!Q51) ->  | N37: =IF($J37=1,"",Tables!R$43-Tables!R51) -> 
A38: 34 | B38: Digit Two Length {30} | C38: 7.5 | D38: 0.7 | E38: 0.7 | F38: 6.9 | G38: 0.8 | H38: 0.8 | I38: 0.394 | J38: 1 | K38: =IF($J38=1,"",Tables!O$43-Tables!O52) ->  | L38: =IF($J38=1,"",Tables!P$43-Tables!P52) ->  | M38: =IF($J38=1,"",Tables!Q$43-Tables!Q52) ->  | N38: =IF($J38=1,"",Tables!R$43-Tables!R52) -> 
A39: 35 | B39: Hand Breadth {31} | C39: 8.7 | D39: 0.5 | E39: 0.5 | F39: 7.7 | G39: 0.5 | H39: 0.5 | I39: 0.394 | J39: 1 | K39: =IF($J39=1,"",Tables!O$43-Tables!O53) ->  | L39: =IF($J39=1,"",Tables!P$43-Tables!P53) ->  | M39: =IF($J39=1,"",Tables!Q$43-Tables!Q53) ->  | N39: =IF($J39=1,"",Tables!R$43-Tables!R53) -> 
A40: 36 | B40: Digit One Length {32} | C40: 12.7 | D40: 1.1 | E40: 1.1 | F40: 11 | G40: 1 | H40: 1 | I40: 0.394 | J40: 1 | K40: =IF($J40=1,"",Tables!O$43-Tables!O54) ->  | L40: =IF($J40=1,"",Tables!P$43-Tables!P54) ->  | M40: =IF($J40=1,"",Tables!Q$43-Tables!Q54) ->  | N40: =IF($J40=1,"",Tables!R$43-Tables!R54) -> 
A41: 37 | B41: Breadth of Digit One Interphalangeal Joint {33} | C41: 2.3 | D41: 0.1 | E41: 0.1 | F41: 1.9 | G41: 0.1 | H41: 0.1 | I41: 0.394 | J41: 1 | K41: =IF($J41=1,"",Tables!O$43-Tables!O55) ->  | L41: =IF($J41=1,"",Tables!P$43-Tables!P55) ->  | M41: =IF($J41=1,"",Tables!Q$43-Tables!Q55) ->  | N41: =IF($J41=1,"",Tables!R$43-Tables!R55) -> 
A42: 38 | B42: Breadth of Digit Three Interphalangeal Joint {34} | C42: 1.8 | D42: 0.1 | E42: 0.1 | F42: 1.5 | G42: 0.1 | H42: 0.1 | I42: 0.394
A43: 39 | B43: Grip Breath, Inside Diameter {35} | C43: 4.9 | D43: 0.6 | E43: 0.6 | F43: 4.3 | G43: 0.3 | H43: 0.3 | I43: 0.394 | M43: Target Percentile | N43: Test | O43: =Anthropometry!F4 -> 5 | P43: =100-Anthropometry!F4 -> 95 | Q43: =Anthropometry!F4/2 -> 2.5 | R43: =100-Anthropometry!F4/2 -> 97.5
A44: 40 | B44: Hand Spread, D1 to D2, 1st Phal. Joint {36} | C44: 12.4 | D44: 2.4 | E44: 2.4 | F44: 9.9 | G44: 1.7 | H44: 1.7 | I44: 0.394 | M44: Actual Percentiles
A45: 41 | B45: Hand Spread, D1 to D2, 2nd Phal. Joint {37} | C45: 10.5 | D45: 1.7 | E45: 1.7 | F45: 8.1 | G45: 1.7 | H45: 1.7 | I45: 0.394 | M45: =INDEX(Tables!$B$5:$B$49,Anthropometry!A9,1) -> Stature {9} | N45: =(IF(O45="","",IF(OR(ABS($O$43-O45)>0.5,ABS($P$43-P45)>0.5,ABS($Q$43-Q45)>0.5,ABS($R$43-R45)>0.5),"*",""))) ->  | O45: =IF(Anthropometry!C9="","",(Anthropometry!$C$4*NORMSDIST((Anthropometry!C9-Tables!$K5)/Tables!K18)+Anthropometry!$D$4*NORMSDIST((Anthropometry!C9-Tables!$N5)/Tables!O18))) -> 5.000661325 | P45: =IF(Anthropometry!D9="","",(Anthropometry!$C$4*NORMSDIST((Anthropometry!D9-Tables!$K5)/Tables!L18)+Anthropometry!$D$4*NORMSDIST((Anthropometry!D9-Tables!$N5)/Tables!P18))) -> 94.99813798 | Q45: =IF(Anthropometry!E9="","",(Anthropometry!$C$4*NORMSDIST((Anthropometry!E9-Tables!$K5)/Tables!M18)+Anthropometry!$D$4*NORMSDIST((Anthropometry!E9-Tables!$N5)/Tables!Q18))) -> 2.500213312 | R45: =IF(Anthropometry!F9="","",(Anthropometry!$C$4*NORMSDIST((Anthropometry!F9-Tables!$K5)/Tables!N18)+Anthropometry!$D$4*NORMSDIST((Anthropometry!F9-Tables!$N5)/Tables!R18))) -> 97.4928046
A46: 42 | B46: Head Breadth {38} | C46: 15.3 | D46: 0.6 | E46: 0.6 | F46: 14.5 | G46: 0.6 | H46: 0.6 | I46: 0.394 | M46: =INDEX(Tables!$B$5:$B$49,Anthropometry!A10,1) -> Weight {43} | N46: =(IF(O46="","",IF(OR(ABS($O$43-O46)>0.5,ABS($P$43-P46)>0.5,ABS($Q$43-Q46)>0.5,ABS($R$43-R46)>0.5),"*",""))) ->  | O46: =IF(Anthropometry!C10="","",(Anthropometry!$C$4*NORMSDIST((Anthropometry!C10-Tables!$K6)/Tables!K19)+Anthropometry!$D$4*NORMSDIST((Anthropometry!C10-Tables!$N6)/Tables!O19))) -> 5.003355781 | P46: =IF(Anthropometry!D10="","",(Anthropometry!$C$4*NORMSDIST((Anthropometry!D10-Tables!$K6)/Tables!L19)+Anthropometry!$D$4*NORMSDIST((Anthropometry!D10-Tables!$N6)/Tables!P19))) -> 94.99562998 | Q46: =IF(Anthropometry!E10="","",(Anthropometry!$C$4*NORMSDIST((Anthropometry!E10-Tables!$K6)/Tables!M19)+Anthropometry!$D$4*NORMSDIST((Anthropometry!E10-Tables!$N6)/Tables!Q19))) -> 2.505275187 | R46: =IF(Anthropometry!F10="","",(Anthropometry!$C$4*NORMSDIST((Anthropometry!F10-Tables!$K6)/Tables!N19)+Anthropometry!$D$4*NORMSDIST((Anthropometry!F10-Tables!$N6)/Tables!R19))) -> 97.49603444
A47: 43 | B47: Interpupillary Breadth {39} | C47: 6.1 | D47: 0.4 | E47: 0.4 | F47: 5.8 | G47: 0.4 | H47: 0.4 | I47: 0.394 | M47: =INDEX(Tables!$B$5:$B$49,Anthropometry!A11,1) -> None | O47: =IF(Anthropometry!C11="","",(Anthropometry!$C$4*NORMSDIST((Anthropometry!C11-Tables!$K7)/Tables!K20)+Anthropometry!$D$4*NORMSDIST((Anthropometry!C11-Tables!$N7)/Tables!O20))) ->  | P47: =IF(Anthropometry!D11="","",(Anthropometry!$C$4*NORMSDIST((Anthropometry!D11-Tables!$K7)/Tables!L20)+Anthropometry!$D$4*NORMSDIST((Anthropometry!D11-Tables!$N7)/Tables!P20))) ->  | Q47: =IF(Anthropometry!E11="","",(Anthropometry!$C$4*NORMSDIST((Anthropometry!E11-Tables!$K7)/Tables!M20)+Anthropometry!$D$4*NORMSDIST((Anthropometry!E11-Tables!$N7)/Tables!Q20))) ->  | R47: =IF(Anthropometry!F11="","",(Anthropometry!$C$4*NORMSDIST((Anthropometry!F11-Tables!$K7)/Tables!N20)+Anthropometry!$D$4*NORMSDIST((Anthropometry!F11-Tables!$N7)/Tables!R20))) -> 
A48: 44 | B48: Biocular Breadth {40} | C48: 9.2 | D48: 0.5 | E48: 0.5 | F48: 9 | G48: 0.5 | H48: 0.5 | I48: 0.394 | M48: =INDEX(Tables!$B$5:$B$49,Anthropometry!A12,1) -> None | O48: =IF(Anthropometry!C12="","",(Anthropometry!$C$4*NORMSDIST((Anthropometry!C12-Tables!$K8)/Tables!K21)+Anthropometry!$D$4*NORMSDIST((Anthropometry!C12-Tables!$N8)/Tables!O21))) ->  | P48: =IF(Anthropometry!D12="","",(Anthropometry!$C$4*NORMSDIST((Anthropometry!D12-Tables!$K8)/Tables!L21)+Anthropometry!$D$4*NORMSDIST((Anthropometry!D12-Tables!$N8)/Tables!P21))) ->  | Q48: =IF(Anthropometry!E12="","",(Anthropometry!$C$4*NORMSDIST((Anthropometry!E12-Tables!$K8)/Tables!M21)+Anthropometry!$D$4*NORMSDIST((Anthropometry!E12-Tables!$N8)/Tables!Q21))) ->  | R48: =IF(Anthropometry!F12="","",(Anthropometry!$C$4*NORMSDIST((Anthropometry!F12-Tables!$K8)/Tables!N21)+Anthropometry!$D$4*NORMSDIST((Anthropometry!F12-Tables!$N8)/Tables!R21))) -> 
A49: 45 | B49: Blank | C49: 1 | D49: 1 | E49: 1 | F49: 1 | G49: 1 | H49: 1 | I49: 1 | M49: =INDEX(Tables!$B$5:$B$49,Anthropometry!A13,1) -> None | O49: =IF(Anthropometry!C13="","",(Anthropometry!$C$4*NORMSDIST((Anthropometry!C13-Tables!$K9)/Tables!K22)+Anthropometry!$D$4*NORMSDIST((Anthropometry!C13-Tables!$N9)/Tables!O22))) ->  | P49: =IF(Anthropometry!D13="","",(Anthropometry!$C$4*NORMSDIST((Anthropometry!D13-Tables!$K9)/Tables!L22)+Anthropometry!$D$4*NORMSDIST((Anthropometry!D13-Tables!$N9)/Tables!P22))) ->  | Q49: =IF(Anthropometry!E13="","",(Anthropometry!$C$4*NORMSDIST((Anthropometry!E13-Tables!$K9)/Tables!M22)+Anthropometry!$D$4*NORMSDIST((Anthropometry!E13-Tables!$N9)/Tables!Q22))) ->  | R49: =IF(Anthropometry!F13="","",(Anthropometry!$C$4*NORMSDIST((Anthropometry!F13-Tables!$K9)/Tables!N22)+Anthropometry!$D$4*NORMSDIST((Anthropometry!F13-Tables!$N9)/Tables!R22))) -> 
M50: =INDEX(Tables!$B$5:$B$49,Anthropometry!A14,1) -> None | O50: =IF(Anthropometry!C14="","",(Anthropometry!$C$4*NORMSDIST((Anthropometry!C14-Tables!$K10)/Tables!K23)+Anthropometry!$D$4*NORMSDIST((Anthropometry!C14-Tables!$N10)/Tables!O23))) ->  | P50: =IF(Anthropometry!D14="","",(Anthropometry!$C$4*NORMSDIST((Anthropometry!D14-Tables!$K10)/Tables!L23)+Anthropometry!$D$4*NORMSDIST((Anthropometry!D14-Tables!$N10)/Tables!P23))) ->  | Q50: =IF(Anthropometry!E14="","",(Anthropometry!$C$4*NORMSDIST((Anthropometry!E14-Tables!$K10)/Tables!M23)+Anthropometry!$D$4*NORMSDIST((Anthropometry!E14-Tables!$N10)/Tables!Q23))) ->  | R50: =IF(Anthropometry!F14="","",(Anthropometry!$C$4*NORMSDIST((Anthropometry!F14-Tables!$K10)/Tables!N23)+Anthropometry!$D$4*NORMSDIST((Anthropometry!F14-Tables!$N10)/Tables!R23))) -> 
B51: Thomas E. Bernard | M51: =INDEX(Tables!$B$5:$B$49,Anthropometry!A15,1) -> None | O51: =IF(Anthropometry!C15="","",(Anthropometry!$C$4*NORMSDIST((Anthropometry!C15-Tables!$K11)/Tables!K24)+Anthropometry!$D$4*NORMSDIST((Anthropometry!C15-Tables!$N11)/Tables!O24))) ->  | P51: =IF(Anthropometry!D15="","",(Anthropometry!$C$4*NORMSDIST((Anthropometry!D15-Tables!$K11)/Tables!L24)+Anthropometry!$D$4*NORMSDIST((Anthropometry!D15-Tables!$N11)/Tables!P24))) ->  | Q51: =IF(Anthropometry!E15="","",(Anthropometry!$C$4*NORMSDIST((Anthropometry!E15-Tables!$K11)/Tables!M24)+Anthropometry!$D$4*NORMSDIST((Anthropometry!E15-Tables!$N11)/Tables!Q24))) ->  | R51: =IF(Anthropometry!F15="","",(Anthropometry!$C$4*NORMSDIST((Anthropometry!F15-Tables!$K11)/Tables!N24)+Anthropometry!$D$4*NORMSDIST((Anthropometry!F15-Tables!$N11)/Tables!R24))) -> 
B52: University of South Florida | M52: =INDEX(Tables!$B$5:$B$49,Anthropometry!A16,1) -> None | O52: =IF(Anthropometry!C16="","",(Anthropometry!$C$4*NORMSDIST((Anthropometry!C16-Tables!$K12)/Tables!K25)+Anthropometry!$D$4*NORMSDIST((Anthropometry!C16-Tables!$N12)/Tables!O25))) ->  | P52: =IF(Anthropometry!D16="","",(Anthropometry!$C$4*NORMSDIST((Anthropometry!D16-Tables!$K12)/Tables!L25)+Anthropometry!$D$4*NORMSDIST((Anthropometry!D16-Tables!$N12)/Tables!P25))) ->  | Q52: =IF(Anthropometry!E16="","",(Anthropometry!$C$4*NORMSDIST((Anthropometry!E16-Tables!$K12)/Tables!M25)+Anthropometry!$D$4*NORMSDIST((Anthropometry!E16-Tables!$N12)/Tables!Q25))) ->  | R52: =IF(Anthropometry!F16="","",(Anthropometry!$C$4*NORMSDIST((Anthropometry!F16-Tables!$K12)/Tables!N25)+Anthropometry!$D$4*NORMSDIST((Anthropometry!F16-Tables!$N12)/Tables!R25))) -> 
B53: College of Public Health | M53: =INDEX(Tables!$B$5:$B$49,Anthropometry!A17,1) -> None | O53: =IF(Anthropometry!C17="","",(Anthropometry!$C$4*NORMSDIST((Anthropometry!C17-Tables!$K13)/Tables!K26)+Anthropometry!$D$4*NORMSDIST((Anthropometry!C17-Tables!$N13)/Tables!O26))) ->  | P53: =IF(Anthropometry!D17="","",(Anthropometry!$C$4*NORMSDIST((Anthropometry!D17-Tables!$K13)/Tables!L26)+Anthropometry!$D$4*NORMSDIST((Anthropometry!D17-Tables!$N13)/Tables!P26))) ->  | Q53: =IF(Anthropometry!E17="","",(Anthropometry!$C$4*NORMSDIST((Anthropometry!E17-Tables!$K13)/Tables!M26)+Anthropometry!$D$4*NORMSDIST((Anthropometry!E17-Tables!$N13)/Tables!Q26))) ->  | R53: =IF(Anthropometry!F17="","",(Anthropometry!$C$4*NORMSDIST((Anthropometry!F17-Tables!$K13)/Tables!N26)+Anthropometry!$D$4*NORMSDIST((Anthropometry!F17-Tables!$N13)/Tables!R26))) -> 
B54: Tampa FL 33612-3805 | M54: =INDEX(Tables!$B$5:$B$49,Anthropometry!A18,1) -> None | O54: =IF(Anthropometry!C18="","",(Anthropometry!$C$4*NORMSDIST((Anthropometry!C18-Tables!$K14)/Tables!K27)+Anthropometry!$D$4*NORMSDIST((Anthropometry!C18-Tables!$N14)/Tables!O27))) ->  | P54: =IF(Anthropometry!D18="","",(Anthropometry!$C$4*NORMSDIST((Anthropometry!D18-Tables!$K14)/Tables!L27)+Anthropometry!$D$4*NORMSDIST((Anthropometry!D18-Tables!$N14)/Tables!P27))) ->  | Q54: =IF(Anthropometry!E18="","",(Anthropometry!$C$4*NORMSDIST((Anthropometry!E18-Tables!$K14)/Tables!M27)+Anthropometry!$D$4*NORMSDIST((Anthropometry!E18-Tables!$N14)/Tables!Q27))) ->  | R54: =IF(Anthropometry!F18="","",(Anthropometry!$C$4*NORMSDIST((Anthropometry!F18-Tables!$K14)/Tables!N27)+Anthropometry!$D$4*NORMSDIST((Anthropometry!F18-Tables!$N14)/Tables!R27))) -> 
B55: tbernard@hsc.usf.edu // (813) 974-6629 | M55: =INDEX(Tables!$B$5:$B$49,Anthropometry!A19,1) -> None | O55: =IF(Anthropometry!C19="","",(Anthropometry!$C$4*NORMSDIST((Anthropometry!C19-Tables!$K15)/Tables!K28)+Anthropometry!$D$4*NORMSDIST((Anthropometry!C19-Tables!$N15)/Tables!O28))) ->  | P55: =IF(Anthropometry!D19="","",(Anthropometry!$C$4*NORMSDIST((Anthropometry!D19-Tables!$K15)/Tables!L28)+Anthropometry!$D$4*NORMSDIST((Anthropometry!D19-Tables!$N15)/Tables!P28))) ->  | Q55: =IF(Anthropometry!E19="","",(Anthropometry!$C$4*NORMSDIST((Anthropometry!E19-Tables!$K15)/Tables!M28)+Anthropometry!$D$4*NORMSDIST((Anthropometry!E19-Tables!$N15)/Tables!Q28))) ->  | R55: =IF(Anthropometry!F19="","",(Anthropometry!$C$4*NORMSDIST((Anthropometry!F19-Tables!$K15)/Tables!N28)+Anthropometry!$D$4*NORMSDIST((Anthropometry!F19-Tables!$N15)/Tables!R28))) -> 
B56: v1.3 10/7/00 © 2000 Thomas E. Bernard
B57: For updates, see Stone Wheels at www.hsc.usf.edu/~tbernard
B58: No Warranty -- Explicit or Implicit

Sheet Reference Points
A1: Location References
A2: Information from Ergonomic Design for People at Work, Vol 1
A3: pp 299-310
